fUSD/lending_fUSD_20240521
["ID","MTS","AMOUNT","RATE_DAILY","PERIOD"]
[327666769,1716292247210,-500.0,0.00032986,6]
[327666770,1716292247219,-500.0,0.00032986,6]
[327666771,1716292247228,-500.0,0.00032986,6]
[327666772,1716292247237,-824.45,0.00032986,6]
[327666773,1716292247248,-500.0,0.00032986,6]
[327666774,1716292247257,-886.1,0.00032986,6]
[327666775,1716292247267,-500.0,0.00032986,6]
[327666776,1716292247277,-500.0,0.00032986,6]
[327666777,1716292247287,-1224.01,0.00032986,6]
[327666778,1716292247296,-500.0,0.00032986,6]
[327666779,1716292247305,-500.0,0.00032986,6]
[327666780,1716292247314,-500.0,0.00032986,6]
[327666781,1716292247323,-846.56,0.00032986,6]
[327666782,1716292247334,-952.02,0.00032986,6]
[327666783,1716292247343,-500.0,0.00032986,6]
[327666784,1716292247353,-500.0,0.00032986,6]
[327666785,1716292247362,-503.73,0.00032986,6]
[327666786,1716292247372,-817.04,0.00032986,6]
[327666787,1716292247382,-584.98,0.00032986,6]
[327666788,1716292247391,-525.45819808,0.00032986,6]
[327666789,1716292247401,-515.87,0.00032986,6]
[327666790,1716292247410,-500.0,0.00032986,6]
[327666791,1716292247420,-629.15,0.00032986,6]
[327666792,1716292247429,-821.43,0.00032986,6]
[327666793,1716292247439,-901.38,0.00032986,6]
[327666794,1716292247449,-500.0,0.00032986,6]
[327666795,1716292247459,-685.48,0.00032986,6]
[327666796,1716292247468,-954.05,0.00032986,6]
[327666797,1716292247477,-500.0,0.00032986,6]
[327666798,1716292247488,-500.0,0.00032986,6]
[327666799,1716292247498,-500.0,0.00032986,6]
[327666800,1716292247507,-513.34,0.00032986,6]
[327666801,1716292247516,-505.15,0.00032986,6]
[327666802,1716292247527,-696.39,0.00032986,6]
[327666803,1716292247536,-688.03,0.00032986,6]
[327666804,1716292247545,-500.0,0.00032986,6]
[327666805,1716292247555,-500.0,0.00032986,6]
[327666806,1716292247564,-500.0,0.00032986,6]
[327666807,1716292247573,-603.12,0.00032986,6]
[327666808,1716292247582,-500.0,0.00032986,6]
[327666809,1716292247592,-1156.55,0.00032986,6]
[327666810,1716292247601,-500.0,0.00032986,6]
[327666811,1716292247611,-1543.53,0.00032986,6]
[327666812,1716292247620,-500.0,0.00032986,6]
[327666813,1716292247629,-500.0,0.00032986,6]
[327666814,1716292247639,-526.81,0.00032986,6]
[327666815,1716292247648,-1235.19,0.00032986,6]
[327666816,1716292247657,-500.0,0.00032986,6]
[327666817,1716292247667,-885.48,0.00032986,6]
[327666818,1716292247675,-7852.31,0.00032986,6]
[327666819,1716292247685,-500.0,0.00032986,6]
[327666820,1716292247695,-524.54,0.00032986,6]
[327666821,1716292247704,-2535.64,0.00032986,6]
[327666822,1716292247714,-500.0,0.00032986,6]
[327666823,1716292247723,-500.0,0.00032986,6]
[327666824,1716292247732,-973.98,0.00032986,6]
[327666825,1716292247742,-500.0,0.00032986,6]
[327666826,1716292247751,-1308.71,0.00032986,6]
[327666827,1716292247761,-500.0,0.00032986,6]
[327666828,1716292247770,-632.86,0.00032986,6]
[327666829,1716292247782,-500.0,0.00032986,6]
[327666830,1716292247793,-1371.89,0.00032986,6]
[327666831,1716292247803,-500.0,0.00032986,6]
[327666832,1716292247812,-1102.86,0.00032986,6]
[327666833,1716292247822,-500.0,0.00032986,6]
[327666834,1716292247831,-1064.95,0.00032986,6]
[327666835,1716292247840,-2281.36,0.00032986,6]
[327666836,1716292247849,-500.0,0.00032986,6]
[327666837,1716292247859,-27444.46,0.00032986,6]
[327666838,1716292247868,-2014.52,0.00032986,6]
[327666839,1716292247877,-500.0,0.00032986,6]
[327666840,1716292247886,-500.0,0.00032986,6]
[327666841,1716292247895,-500.0,0.00032986,6]
[327666842,1716292247905,-500.0,0.00032986,6]
[327666843,1716292247914,-500.0,0.00032986,6]
[327666844,1716292247923,-500.0,0.00032986,6]
[327666845,1716292247932,-519.28,0.00032986,6]
[327666846,1716292247941,-500.0,0.00032986,6]
[327666847,1716292247951,-2936.27,0.00032986,6]
[327666848,1716292247960,-521.28,0.00032986,6]
[327666849,1716292247969,-635.33,0.00032986,6]
[327666850,1716292247979,-500.0,0.00032986,6]
[327666851,1716292247992,-500.0,0.00032986,6]
[327666852,1716292248001,-1167.78,0.00032986,6]
[327666853,1716292248011,-8145.66,0.00032986,6]
[327666854,1716292248020,-500.0,0.00032986,6]
[327666855,1716292248032,-735.79,0.00032986,6]
[327666856,1716292248041,-781.46,0.00032986,6]
[327666857,1716292248050,-500.0,0.00032986,6]
[327666858,1716292248061,-1519.52,0.00032986,6]
[327666859,1716292248070,-500.0,0.00032986,6]
[327666860,1716292248080,-500.0,0.00032986,6]
[327666861,1716292248090,-606.56,0.00032986,6]
[327666862,1716292248099,-883.46,0.00032986,6]
[327666863,1716292248109,-1424.71,0.00032986,6]
[327666864,1716292248118,-10729.61,0.00032986,6]
[327666865,1716292248127,-1704.21,0.00032986,6]
[327666866,1716292248137,-500.0,0.00032986,6]
[327666867,1716292248146,-5894.69,0.00032986,6]
[327666868,1716292248156,-805.16,0.00032986,6]
[327666869,1716292248166,-500.0,0.00032986,6]
[327666870,1716292248175,-500.0,0.00032986,6]
[327666871,1716292248184,-6704.49,0.00032986,6]
[327666872,1716292248193,-500.0,0.00032986,6]
[327666873,1716292248202,-500.0,0.00032986,6]
[327666874,1716292248211,-556.24,0.00032986,6]
[327666875,1716292248221,-500.0,0.00032986,6]
[327666876,1716292248230,-500.0,0.00032986,6]
[327666877,1716292248240,-500.0,0.00032986,6]
[327666878,1716292248249,-668.7,0.00032986,6]
[327666879,1716292248268,-500.0,0.00032986,6]
[327666880,1716292248280,-500.0,0.00032986,6]
[327666881,1716292248289,-955.48,0.00032986,6]
[327666882,1716292248298,-500.0,0.00032986,6]
[327666883,1716292248307,-792.25,0.00032986,6]
[327666884,1716292248316,-500.0,0.00032986,6]
[327666885,1716292248325,-500.0,0.00032986,6]
[327666886,1716292248335,-1823.49,0.00032986,6]
[327666887,1716292248344,-2445.38,0.00032986,6]
[327666888,1716292248354,-4247.02,0.00032986,6]
[327666889,1716292248363,-500.0,0.00032986,6]
[327666890,1716292248372,-2551.72,0.00032986,6]
[327666891,1716292248382,-500.0,0.00032986,6]
[327666892,1716292248391,-500.0,0.00032986,6]
[327666893,1716292248399,-574.97,0.00032986,6]
[327666894,1716292248410,-656.22,0.00032986,6]
[327666895,1716292248419,-500.0,0.00032986,6]
[327666896,1716292248429,-2923.06,0.00032986,6]
[327666897,1716292248438,-2428.74,0.00032986,6]
[327666898,1716292248448,-3454.35,0.00032986,6]
[327666899,1716292248457,-500.0,0.00032986,6]
[327666900,1716292248467,-500.0,0.00032986,6]
[327666901,1716292248476,-500.0,0.00032986,6]
[327666902,1716292248485,-854.82,0.00032986,6]
[327666903,1716292248494,-500.0,0.00032986,6]
[327666904,1716292248503,-500.0,0.00032986,6]
[327666905,1716292248513,-2141.83,0.00032986,6]
[327666906,1716292248522,-500.0,0.00032986,6]
[327666907,1716292248533,-942.69,0.00032986,6]
[327666908,1716292248543,-833.45,0.00032986,6]
[327666909,1716292248552,-500.0,0.00032986,6]
[327666910,1716292248561,-1182.4,0.00032986,6]
[327666911,1716292248570,-500.0,0.00032986,6]
[327666912,1716292248579,-500.0,0.00032986,6]
[327666913,1716292248588,-1965.62,0.00032986,6]
[327666914,1716292248597,-1449.54,0.00032986,6]
[327666915,1716292248606,-500.0,0.00032986,6]
[327666916,1716292248616,-3525.25,0.00032986,6]
[327666917,1716292248626,-500.0,0.00032986,6]
[327666918,1716292248635,-500.0,0.00032986,6]
[327666919,1716292248644,-2898.87,0.00032986,6]
[327666920,1716292248653,-848.75,0.00032986,6]
[327666921,1716292248663,-500.0,0.00032986,6]
[327666922,1716292248672,-668.96,0.00032986,6]
[327666923,1716292248681,-500.0,0.00032986,6]
[327666924,1716292248690,-500.0,0.00032986,6]
[327666925,1716292248699,-1281.4,0.00032986,6]
[327666926,1716292248708,-500.0,0.00032986,6]
[327666927,1716292248718,-1124.28,0.00032986,6]
[327666928,1716292248727,-1789.31,0.00032986,6]
[327666929,1716292248736,-500.0,0.00032986,6]
[327666930,1716292248745,-1550.78,0.00032986,6]
[327666931,1716292248755,-500.0,0.00032986,6]
[327666932,1716292248764,-726.92,0.00032986,6]
[327666933,1716292248773,-500.0,0.00032986,6]
[327666934,1716292248785,-4215.7,0.00032986,6]
[327666935,1716292248794,-314.35437649,0.00032986,6]
[327666936,1716292248803,-500.0,0.00032986,6]
[327666937,1716292248812,-496.98123691,0.00032986,6]
[327666938,1716292248822,-500.0,0.00032986,6]
[327666939,1716292248831,-951.7,0.00032986,6]
[327666940,1716292248840,-500.0,0.00032986,6]
[327666941,1716292248850,-736.36,0.00032986,6]
[327666942,1716292248859,-500.0,0.00032986,6]
[327666943,1716292248868,-2033.88,0.00032986,6]
[327666944,1716292248877,-500.0,0.00032986,6]
[327666945,1716292248887,-500.0,0.00032986,6]
[327666946,1716292248896,-1330.65,0.00032986,6]
[327666947,1716292248905,-500.0,0.00032986,6]
[327666948,1716292248914,-3732.5,0.00032986,6]
[327666949,1716292248924,-781.55,0.00032986,6]
[327666950,1716292248934,-500.0,0.00032986,6]
[327666951,1716292248943,-770.78,0.00032986,6]
[327666952,1716292248952,-2133.05,0.00032986,6]
[327666953,1716292248962,-571.88,0.00032986,6]
[327666954,1716292248972,-772.97,0.00032986,6]
[327666955,1716292248987,-500.0,0.00032986,6]
[327666956,1716292248996,-801.49,0.00032986,6]
[327666957,1716292249005,-2444.91,0.00032986,6]
[327666958,1716292249014,-4371.85,0.00032986,6]
[327666959,1716292249024,-500.0,0.00032986,6]
[327666960,1716292249035,-262.92946704,0.00032986,6]
[327666961,1716292249044,-537.63,0.00032986,6]
[327666962,1716292249053,-973.37,0.00032986,6]
[327666963,1716292249064,-500.0,0.00032986,6]
[327666964,1716292249074,-211.97282222,0.00032986,6]
[327666965,1716292249084,-500.0,0.00032986,6]
[327666966,1716292249094,-500.0,0.00032986,6]
[327666967,1716292249103,-1702.02,0.00032986,6]
[327666968,1716292249112,-1016.31,0.00032986,6]
[327666969,1716292249123,-4106.9481202,0.00032995,5]
[327666970,1716292249132,-181.40756924,0.00032995,5]
[327666971,1716292249142,-176.48403997,0.00032995,2]
[327666972,1716292249151,-151.65055707,0.00032995,2]
[327666973,1716292249161,-18317.94900315,0.00033014,2]
[327666974,1716292249170,-379.2,0.00033041,2]
[327666975,1716292249180,-351.89,0.00033041,2]
[327666976,1716292249189,-300.0,0.00033041,2]
[327666977,1716292249199,-157.94,0.00033041,2]
[327666978,1716292249208,-513.51,0.00033041,2]
[327666979,1716292249218,-150.0,0.00033041,2]
[327666980,1716292249228,-163.38,0.00033041,2]
[327666981,1716292249237,-1052.33,0.00033041,2]
[327666982,1716292249246,-351.89,0.00033041,2]
[327666983,1716292249255,-420.83,0.00033041,2]
[327666984,1716292249264,-150.0,0.00033041,2]
[327666985,1716292249274,-150.0,0.00033041,2]
[327666986,1716292249284,-150.0,0.00033041,2]
[327666987,1716292249294,-420.83,0.00033041,2]
[327666988,1716292249303,-150.0,0.00033041,2]
[327666989,1716292249313,-351.89,0.00033041,2]
[327666990,1716292249322,-420.83,0.00033041,2]
[327666991,1716292249332,-150.0,0.00033041,2]
[327666992,1716292249341,-150.0,0.00033041,2]
[327666993,1716292249351,-351.89,0.00033041,2]
[327666994,1716292249360,-150.0,0.00033041,2]
[327666995,1716292249370,-351.89,0.00033041,2]
[327666996,1716292249379,-150.0,0.00033041,2]
[327666997,1716292249388,-420.83,0.00033041,2]
[327666998,1716292249398,-350.87,0.00033041,2]
[327666999,1716292249408,-150.0,0.00033041,2]
[327667000,1716292249418,-150.0,0.00033041,2]
[327667001,1716292249427,-150.0,0.00033041,2]
[327667002,1716292249436,-1537.13717,0.0003309,2]
[327667003,1716292249445,-15505.4712003,0.00033092,4]
[327667004,1716292249455,-164.00530355,0.00033092,4]
[327667005,1716292249464,-446.54380812,0.00033092,4]
[327667006,1716292249474,-37402.60607215,0.00033093,4]
[327667007,1716292249484,-500.0,0.00033093,7]
[327667008,1716292249493,-312.05206874,0.00033093,7]
[327667009,1716292249502,-500.0,0.00033093,7]
[327667010,1716292249512,-336.49211903,0.00033093,7]
[327667011,1716292249521,-447.43779317,0.00033093,7]
[327667012,1716292249531,-500.0,0.00033093,7]
[327667013,1716292249541,-500.0,0.00033093,7]
[327667014,1716292249550,-292.32351767,0.00033093,7]
[327667015,1716292249559,-500.0,0.00033093,7]
[327667016,1716292249568,-199.993,0.00033093,7]
[327667017,1716292249577,-112917.7717113,0.00033094,19]
[327667018,1716292249586,-194410.82846996,0.00033094,2]
[327667019,1716292249605,-283.96685291,0.00033094,2]
[327667020,1716292249624,-6780.16527379,0.00033094,2]
[327667021,1716292249698,-19.50328856,0.00033094,2]
[327667022,1716292249723,-260.32415917,0.00033094,2]
[327667023,1716292250490,-155.0,0.00033092,4]
[327667024,1716292250500,-1428.0242,0.00033094,2]
[327667025,1716292250580,-1295.509188,0.00033094,2]
[327667026,1716292250604,-0.0166299,0.00033094,2]
[327667027,1716292250615,-510.24698111,0.00033094,2]
[327667030,1716292726302,158.78,0.00013973,2]
[327667035,1716293247177,-155.0,0.00017251,2]
[327667036,1716293247213,-521.66985515,0.00017252,2]
[327667037,1716293247253,-542.49512477,0.00017252,2]
[327667038,1716293247284,-2001.17311596,0.00017252,2]
[327667039,1716293247315,-2439.3924574,0.00017253,2]
[327667040,1716293247356,-202.2720038,0.000192,2]
[327667041,1716293354092,-10441.76354157,0.0001725,2]
[327667061,1716293431666,-3850.31055054,0.00019451,2]
[327667062,1716293431788,-30.39669015,0.00019451,2]
[327667063,1716293431798,-1859.37530986,0.0002499,2]
[327667064,1716293431809,-744.53241682,0.0002499,2]
[327667065,1716293431820,-380.04295626,0.0002499,2]
[327667066,1716293431909,-2697.48051752,0.0002499,2]
[327667067,1716293431920,-3222.8,0.0002499,2]
[327667068,1716293431972,-248.83840231,0.0002499,2]
[327667069,1716293431982,-767.49,0.00028355,2]
[327667070,1716293431992,-423.50395095,0.00029783,2]
[327667071,1716293432001,-1814.28,0.00029783,2]
[327667072,1716293432011,-994.48,0.00029783,2]
[327667073,1716293432021,-1000.0,0.0003,30]
[327667074,1716293432031,-593.0,0.0003,15]
[327667076,1716293432040,-500.0,0.0003,5]
[327667078,1716293432049,-155.0,0.00030217,4]
[327667080,1716293432059,-395.57,0.00030218,2]
[327667082,1716293432068,-595.2,0.00030218,2]
[327667084,1716293432077,-250.0,0.0003023,2]
[327667086,1716293432086,-154.1024266,0.00030275,7]
[327667087,1716293432096,-6135.1,0.00030288,2]
[327667089,1716293432105,-767.49,0.00030619,2]
[327667091,1716293432115,-250.0,0.00030952,2]
[327667092,1716293432124,-1206.27,0.00030952,61]
[327667093,1716293432133,-250.0,0.00031024,2]
[327667094,1716293432142,-162.91,0.00031041,120]
[327667095,1716293432152,-644.06,0.00031067,2]
[327667096,1716293432161,-404.8,0.00031104,2]
[327667097,1716293432171,-150.34933574,0.00031126,7]
[327667098,1716293432180,-147.5558924,0.000312,5]
[327667125,1716293437786,-253.75500015,0.000312,5]
[327667126,1716293437798,-720.89000028,0.000312,5]
[327667127,1716293437810,-1266.79910717,0.000312,5]
[327667128,1716293437821,-390.5,0.00031264,2]
[327667129,1716293437831,-150.27,0.00031752,2]
[327667130,1716293437841,-155.27383008,0.00031857,7]
[327667131,1716293437851,-185.23,0.00032256,120]
[327667132,1716293437861,-155.27383008,0.0003264,7]
[327667133,1716293437871,-1531.4349,0.0003266,2]
[327667134,1716293437881,-1444.69704393,0.0003277,2]
[327667135,1716293437891,-8.67869669,0.00032883,2]
[327667136,1716293437903,-758.81130331,0.00032883,2]
[327667137,1716293437913,-439.619,0.00032894,2]
[327667138,1716293437922,-167.11469403,0.00032894,2]
[327667139,1716293437932,-392.8545,0.00032994,2]
[327667140,1716293437941,-9096.59230684,0.00032994,2]
[327667141,1716293438037,-450.89332225,0.00032994,2]
[327667142,1716293438048,-1363.39024112,0.00032994,2]
[327667143,1716293438099,-11281.41034226,0.00032994,2]
[327667144,1716293438111,-5140.3720589,0.00032994,2]
[327667145,1716293438219,-32623.13601012,0.00032994,2]
[327667153,1716293439751,-511.81449438,0.00032994,2]
[327667154,1716293439816,-33074.31073877,0.00032994,2]
[327667155,1716293440174,-434.48,0.00032994,2]
[327667206,1716293442850,-151023.60048536,0.00032994,2]
[327667208,1716293442859,-23734.228,0.00032994,2]
[327667210,1716293442870,-74203.3024,0.00032994,2]
[327667212,1716293442880,-1000.0,0.00032994,2]
[327667214,1716293442891,-5449.9843398,0.00032995,5]
[327667216,1716293442900,-181.40756924,0.00032995,5]
[327667218,1716293442910,-158.14615818,0.00032995,5]
[327667220,1716293442919,-1024.27554708,0.00033,6]
[327667222,1716293442930,-1033.1470884,0.00033,2]
[327667224,1716293442939,-150.66,0.00033084,2]
[327667226,1716293442948,-150.66,0.00033084,2]
[327667228,1716293442958,-150.66,0.00033084,2]
[327667230,1716293442968,-150.66,0.00033084,2]
[327667232,1716293442977,-150.66,0.00033084,2]
[327667234,1716293442987,-150.66,0.00033084,2]
[327667235,1716293442996,-150.66,0.00033084,2]
[327667236,1716293443006,-150.66,0.00033084,2]
[327667238,1716293443016,-150.66,0.00033084,2]
[327667240,1716293443026,-150.66,0.00033084,2]
[327667241,1716293443037,-150.66,0.00033084,2]
[327667243,1716293443046,-150.66,0.00033084,2]
[327667246,1716293443057,-150.66,0.00033084,2]
[327667248,1716293443067,-150.66,0.00033084,2]
[327667249,1716293443077,-150.66,0.00033084,2]
[327667250,1716293443086,-150.66,0.00033084,2]
[327667251,1716293443096,-150.66,0.00033084,2]
[327667252,1716293443105,-150.66,0.00033084,2]
[327667253,1716293443115,-150.66,0.00033084,2]
[327667254,1716293443124,-150.66,0.00033084,2]
[327667255,1716293443133,-150.66,0.00033084,2]
[327667256,1716293443143,-150.66,0.00033084,2]
[327667257,1716293443152,-150.66,0.00033084,2]
[327667258,1716293443162,-150.66,0.00033084,2]
[327667259,1716293443171,-150.66,0.00033084,2]
[327667260,1716293443181,-150.66,0.00033084,2]
[327667261,1716293443190,-150.66,0.00033084,2]
[327667262,1716293443200,-150.66,0.00033084,2]
[327667263,1716293443209,-150.66,0.00033084,2]
[327667264,1716293443219,-463.30512232,0.00033088,3]
[327667265,1716293443228,-5900.0,0.00033092,10]
[327667266,1716293443238,-255.89047942,0.00033092,4]
[327667267,1716293443248,-274.36785903,0.00033092,4]
[327667268,1716293443258,-814.47007038,0.00033092,4]
[327667269,1716293443268,-2404.99664502,0.00033092,4]
[327667270,1716293443277,-5214.00205083,0.00033092,2]
[327667271,1716293443287,-59085.56344396,0.00033093,4]
[327667272,1716293443297,-68137.7110872,0.00033094,19]
[327667273,1716293443306,-465314.53891787,0.00033094,2]
[327667275,1716293443318,-279.7230004,0.00033094,2]
[327667278,1716293443330,-661.3131406,0.00033094,2]
[327667279,1716293443342,-17899.15902022,0.00033094,2]
[327667280,1716293443374,-14825.10005614,0.00033094,2]
[327667281,1716293443390,-284.624,0.00033094,2]
[327667282,1716293443406,-5076.64922126,0.00033094,2]
[327667283,1716293443420,-324911.62330862,0.00033094,2]
[327667299,1716293447077,-166.87237412,0.00033092,4]
[327667300,1716293447087,-8700.76459409,0.00033092,4]
[327667301,1716293447098,-300.0,0.00033093,7]
[327667302,1716293447108,-86543.16765579,0.00033094,2]
[327667303,1716293447387,-361.89999998,0.00033094,2]
[327667304,1716293447402,-4093.17424911,0.00033094,2]
[327667305,1716293447414,-2343.36758848,0.00033094,2]
[327667306,1716293455643,4065.30503528,0.0001725,2]
[327667307,1716293989415,154.03,0.00013973,2]
[327667308,1716294276020,2000.0,0.00029873,120]
[327667309,1716294451400,153.02,0.00013973,2]
[327667310,1716294539552,-80.69546861,0.0001725,2]
[327667311,1716294539574,-927.03560386,0.00017255,2]
[327667312,1716294539596,-927.03560386,0.00017256,2]
[327667317,1716294561709,-1276.19575,0.0001852,2]
[327667321,1716294588231,-862.03757367,0.000192,2]
[327667324,1716294632138,-969.45652537,0.00019451,2]
[327667325,1716294632150,-2911.25071532,0.00019451,2]
[327667326,1716294632160,-456.68016384,0.0001977,2]
[327667327,1716294632171,-819.51559616,0.0001977,2]
[327667328,1716294632181,-349.80756187,0.0002102,2]
[327667329,1716294632224,-472.04,0.0002102,2]
[327667330,1716294632240,-454.34819813,0.0002102,2]
[327667331,1716294632249,-1276.19576,0.0002227,2]
[327667332,1716294632259,-1276.19576,0.0002352,2]
[327667333,1716294632268,-303.28505058,0.00024769,2]
[327667334,1716294632277,-1276.19576,0.0002477,2]
[327667335,1716294632286,-155.0,0.00025,2]
[327667336,1716294632298,-1271.70007805,0.00025,2]
[327667337,1716294632307,-707.73,0.00028081,2]
[327667338,1716294632316,-2000.0,0.00029008,2]
[327667339,1716294632326,-1670.97,0.00029043,2]
[327667340,1716294632335,-644.85,0.00029637,2]
[327667341,1716294632344,-250.0,0.00029792,2]
[327667342,1716294632353,-145.53559964,0.00029807,2]
[327667343,1716294632368,-15.23440036,0.00029807,2]
[327667344,1716294632378,-250.0,0.00029823,2]
[327667345,1716294632388,-153.30567637,0.00029988,2]
[327667346,1716294632397,-313.57105066,0.0003,5]
[327667347,1716294632417,-784.42894934,0.0003,5]
[327667348,1716294632427,-476.16,0.00030015,2]
[327667350,1716294632437,-154.95516002,0.00030117,7]
[327667353,1716294632447,-560.64358881,0.00030345,2]
[327667354,1716294632463,-147.08641119,0.00030345,2]
[327667355,1716294632472,-395.70749696,0.00030442,2]
[327667356,1716294632483,-2438.26539331,0.00030442,2]
[327667357,1716294632495,-1616.31417857,0.00030442,2]
[327667358,1716294632507,-7939.06293116,0.00030442,2]
[327667359,1716294632516,-185.23,0.00030809,120]
[327667360,1716294632526,-162.91,0.00030813,120]
[327667361,1716294632536,-482.40629747,0.00030908,2]
[327667362,1716294632555,-76.42370253,0.00030908,2]
[327667363,1716294632565,-161.256155,0.00031233,14]
[327667364,1716294632574,-360.51384595,0.00031299,4]
[327667365,1716294632584,-235.30840954,0.000313,5]
[327667366,1716294632596,-539.69020108,0.000313,5]
[327667367,1716294632608,-86.00138938,0.000313,5]
[327667368,1716294632617,-481.01932298,0.00031577,2]
[327667382,1716294638236,-224.2441403,0.00028075,2]
[327667383,1716294638246,-42.82067702,0.00031577,2]
[327667384,1716294638256,-180.0148257,0.00031825,7]
[327667385,1716294638266,-161.256155,0.00032055,14]
[327667386,1716294638276,-177.35,0.0003224,120]
[327667387,1716294638286,-153.30567637,0.00032358,7]
[327667388,1716294638296,-159.66110652,0.00032377,7]
[327667389,1716294638309,-155.0,0.0003243,4]
[327667390,1716294638320,-61.43134036,0.0003243,2]
[327667391,1716294638332,-865.09100943,0.0003243,2]
[327667392,1716294638341,-150.34933574,0.00032552,7]
[327667393,1716294638351,-461.95710732,0.00032609,2]
[327667394,1716294638363,-245.77289268,0.00032609,2]
[327667395,1716294638372,-862.22486601,0.00032858,2]
[327667396,1716294638384,-137.77513399,0.00032858,2]
[327667397,1716294638394,-500.49,0.00032876,2]
[327667398,1716294638404,-161.256155,0.00032877,14]
[327667399,1716294638413,-714.08011034,0.00032877,14]
[327667400,1716294638445,-1405.75988966,0.00032877,14]
[327667401,1716294638455,-286.84374146,0.00032884,2]
[327667402,1716294638464,-158.9218,0.00032894,2]
[327667403,1716294638474,-2220.932143,0.00032894,2]
[327667404,1716294638497,-27404.875057,0.00032894,2]
[327667405,1716294638507,-14507.0685,0.00032894,2]
[327667406,1716294638516,-1000.0,0.00032894,2]
[327667407,1716294638526,-21139.44264725,0.00032894,2]
[327667408,1716294638536,-286.84374146,0.00032984,2]
[327667409,1716294638545,-286.84374146,0.00032984,2]
[327667410,1716294638557,-286.84374146,0.00032984,2]
[327667411,1716294638566,-286.84374146,0.00032984,2]
[327667412,1716294638576,-286.84374146,0.00032984,2]
[327667413,1716294638585,-286.84374146,0.00032984,2]
[327667414,1716294638594,-286.84374146,0.00032984,2]
[327667415,1716294638603,-286.84374146,0.00032984,2]
[327667416,1716294638614,-286.84374146,0.00032984,2]
[327667417,1716294638623,-286.84374146,0.00032984,2]
[327667418,1716294638633,-286.84374146,0.00032984,2]
[327667419,1716294638642,-286.84374146,0.00032984,2]
[327667420,1716294638652,-286.84374146,0.00032984,2]
[327667421,1716294638661,-286.84374146,0.00032984,2]
[327667422,1716294638671,-286.84374146,0.00032984,2]
[327667423,1716294638680,-286.84374146,0.00032984,2]
[327667424,1716294638690,-286.84374146,0.00032984,2]
[327667425,1716294638700,-286.84374146,0.00032984,2]
[327667426,1716294638710,-286.84374146,0.00032984,2]
[327667427,1716294638720,-286.84374146,0.00032984,2]
[327667428,1716294638729,-286.84374146,0.00032984,2]
[327667429,1716294638739,-286.84374146,0.00032984,2]
[327667430,1716294638749,-286.84374146,0.00032984,2]
[327667431,1716294638758,-286.84374146,0.00032984,2]
[327667432,1716294638768,-286.84374146,0.00032984,2]
[327667433,1716294638777,-286.84374146,0.00032984,2]
[327667434,1716294638787,-286.84374146,0.00032984,2]
[327667435,1716294638797,-286.84374146,0.00032984,2]
[327667436,1716294638807,-286.84374146,0.00032984,2]
[327667437,1716294638821,-286.84374146,0.00032984,2]
[327667438,1716294638832,-286.84374146,0.00032984,2]
[327667439,1716294638841,-286.84374146,0.00032984,2]
[327667440,1716294638851,-286.84374146,0.00032984,2]
[327667441,1716294638860,-286.84374146,0.00032984,2]
[327667442,1716294638870,-286.84374146,0.00032984,2]
[327667443,1716294638879,-286.84374146,0.00032984,2]
[327667444,1716294638889,-286.84374146,0.00032984,2]
[327667445,1716294638898,-286.84374146,0.00032984,2]
[327667446,1716294638908,-286.84374146,0.00032984,2]
[327667447,1716294638918,-286.84374146,0.00032984,2]